fUSD/lending_fUSD_20250113
["ID","MTS","AMOUNT","RATE_DAILY","PERIOD"]
[348781237,1736781060010,-155.000621,0.00010807,2]
[348781238,1736781060020,-1063.02,0.00010807,2]
[348781239,1736781060029,-500.0,0.00010807,2]
[348781240,1736781060039,-500.0,0.00010807,2]
[348781241,1736781060051,-500.0,0.00010807,2]
[348781242,1736781060061,-500.0,0.00010807,2]
[348781243,1736781060070,-778.3,0.00010807,2]
[348781244,1736781060080,-500.0,0.00010807,2]
[348781245,1736781060089,-159.466887,0.00010807,2]
[348781246,1736781060100,-1307.83,0.00010807,2]
[348781247,1736781060110,-500.0,0.00010807,2]
[348781248,1736781060120,-584.38,0.00010807,2]
[348781249,1736781060129,-644.61545759,0.00010807,2]
[348781250,1736781060139,-500.0,0.00010807,2]
[348781251,1736781060150,-500.0,0.00010807,2]
[348781252,1736781060159,-1826.28,0.00010807,2]
[348781253,1736781060168,-500.0,0.00010807,2]
[348781254,1736781060177,-500.0,0.00010807,2]
[348781255,1736781060186,-1347.85,0.00010807,2]
[348781256,1736781060195,-1214.14,0.00010807,2]
[348781257,1736781060205,-155.907956,0.00010807,2]
[348781258,1736781060215,-500.0,0.00010807,2]
[348781259,1736781060225,-500.0,0.00010807,2]
[348781260,1736781060235,-500.0,0.00010807,2]
[348781261,1736781060244,-165.573314,0.00010807,2]
[348781262,1736781060254,-500.0,0.00010807,2]
[348781263,1736781060264,-500.0,0.00010807,2]
[348781264,1736781060274,-551.71,0.00010807,2]
[348781265,1736781060284,-723.25,0.00010807,2]
[348781266,1736781060296,-500.0,0.00010807,2]
[348781267,1736781060306,-500.0,0.00010807,2]
[348781268,1736781060316,-160.360957,0.00010807,2]
[348781269,1736781060325,-500.0,0.00010807,2]
[348781270,1736781060335,-157.165237,0.00010807,2]
[348781271,1736781060344,-500.0,0.00010807,2]
[348781272,1736781060353,-607.29032663,0.00010807,2]
[348781273,1736781060363,-500.0,0.00010807,2]
[348781274,1736781060373,-1523.09,0.00010807,2]
[348781275,1736781060383,-1616.15,0.00010807,2]
[348781276,1736781060398,-512.41579649,0.00010807,2]
[348781277,1736781060407,-157.956216,0.00010807,2]
[348781278,1736781060419,-500.0,0.00010807,2]
[348781279,1736781060430,-155.545881,0.00010807,2]
[348781280,1736781060440,-500.0,0.00010807,2]
[348781281,1736781060450,-500.0,0.00010807,2]
[348781282,1736781060459,-500.0,0.00010808,2]
[348781283,1736781060469,-637.64108311,0.00010808,2]
[348781284,1736781060478,-232.57786824,0.00010808,2]
[348781285,1736781060489,-626.09216282,0.00010808,2]
[348781286,1736781060498,-417.92541536,0.00010808,2]
[348781287,1736781060508,-500.0,0.00010808,2]
[348781288,1736781060517,-500.0,0.00010808,2]
[348781289,1736781060527,-500.0,0.00010808,7]
[348781290,1736781060536,-500.0,0.00010808,2]
[348781291,1736781060551,-500.0,0.00010808,2]
[348781292,1736781060563,-500.0,0.00010808,2]
[348781293,1736781060573,-500.0,0.00010808,2]
[348781294,1736781060582,-500.0,0.00010808,2]
[348781295,1736781060592,-500.0,0.00010808,2]
[348781296,1736781060603,-501.60786134,0.00010808,2]
[348781297,1736781060613,-500.0,0.00010808,2]
[348781298,1736781060623,-500.0,0.00010808,2]
[348781299,1736781060633,-500.0,0.00010808,2]
[348781300,1736781060643,-500.0,0.00010808,2]
[348781301,1736781060652,-578.45793296,0.00010808,2]
[348781302,1736781060662,-500.0,0.00010808,2]
[348781303,1736781060671,-568.61,0.00010808,2]
[348781304,1736781060680,-624.32864061,0.00010808,2]
[348781305,1736781060690,-500.0,0.00010808,2]
[348781306,1736781060699,-500.0,0.00010808,2]
[348781307,1736781060708,-500.0,0.00010808,2]
[348781308,1736781060718,-326.12094248,0.00010808,2]
[348781309,1736781060728,-500.0,0.00010808,2]
[348781310,1736781060737,-500.0,0.00010808,2]
[348781311,1736781060748,-302.39856273,0.00010808,2]
[348781312,1736781060757,-500.0,0.00010808,2]
[348781313,1736781060767,-500.0,0.00010808,2]
[348781314,1736781060776,-1740.25,0.00010808,2]
[348781315,1736781060785,-1204.96,0.00010808,2]
[348781316,1736781060797,-1337.41,0.00010808,2]
[348781317,1736781060806,-3320.96,0.00010808,2]
[348781318,1736781060815,-935.33,0.00010808,2]
[348781319,1736781060824,-492.35355024,0.00010808,2]
[348781320,1736781060835,-1115.16,0.00010808,2]
[348781321,1736781060844,-541.42,0.00010809,2]
[348781322,1736781060854,-567.18,0.00010809,2]
[348781323,1736781060863,-1780.09,0.00010809,2]
[348781324,1736781060873,-500.0,0.00010809,2]
[348781325,1736781060883,-500.0,0.00010809,2]
[348781326,1736781060892,-1041.22,0.00010809,2]
[348781327,1736781060902,-500.0,0.00010815,2]
[348781328,1736781060912,-1637.35378797,0.00010815,2]
[348781329,1736781061259,-336.16621203,0.00010815,2]
[348781330,1736781061269,-6491.93,0.00010815,2]
[348781331,1736781061278,-930.54,0.00010815,2]
[348781332,1736781061288,-1365.81,0.0001082,2]
[348781333,1736781061300,-956.03,0.0001082,2]
[348781334,1736781061309,-902.73,0.0001082,2]
[348781335,1736781061319,-745.28,0.0001082,2]
[348781336,1736781061328,-500.0,0.0001082,2]
[348781337,1736781061338,-900.09,0.0001082,2]
[348781338,1736781061347,-1047.7,0.0001082,2]
[348781339,1736781061356,-694.11,0.0001082,2]
[348781340,1736781061367,-1261.35,0.0001082,2]
[348781341,1736781061377,-1046.61,0.0001082,2]
[348781342,1736781061387,-500.0,0.00010821,2]
[348781343,1736781061396,-400.84309115,0.00010831,2]
[348781344,1736781061405,-524.0,0.0001088,2]
[348781345,1736781061414,-400.84309115,0.00010934,2]
[348781346,1736781061424,-550.0,0.00011,2]
[348781347,1736781061432,-200.0,0.00011,2]
[348781348,1736781061442,-400.84309115,0.00011038,2]
[348781349,1736781061452,-999.0,0.0001108,2]
[348781350,1736781061463,-500.0,0.0001108,2]
[348781351,1736781061472,-2113.26,0.0001108,2]
[348781352,1736781061481,-1620.44,0.0001108,2]
[348781353,1736781061491,-1145.76,0.0001108,2]
[348781354,1736781061500,-2273.33,0.0001108,2]
[348781355,1736781061510,-500.0,0.0001108,2]
[348781356,1736781061520,-522.89,0.0001108,2]
[348781357,1736781061529,-714.16,0.0001108,2]
[348781358,1736781061539,-500.0,0.0001108,2]
[348781359,1736781061555,-1574.97,0.0001108,2]
[348781360,1736781061565,-812.01,0.0001108,2]
[348781361,1736781061574,-500.0,0.0001108,2]
[348781362,1736781061585,-589.9,0.00011081,2]
[348781363,1736781061595,-500.0,0.00011081,2]
[348781364,1736781061604,-500.0,0.00011081,2]
[348781365,1736781061614,-597.62,0.00011081,2]
[348781366,1736781061623,-1284.02,0.00011081,2]
[348781367,1736781061632,-1609.2,0.00011081,2]
[348781368,1736781061643,-988.31,0.00011081,2]
[348781369,1736781061652,-730.11,0.00011081,2]
[348781370,1736781061661,-2036.03,0.00011081,2]
[348781371,1736781061672,-500.0,0.00011081,2]
[348781372,1736781061683,-500.0,0.00011081,2]
[348781373,1736781061694,-500.0,0.00011081,2]
[348781374,1736781061704,-2273.86,0.00011081,2]
[348781375,1736781061713,-805.23,0.00011081,2]
[348781376,1736781061722,-553.16,0.00011081,2]
[348781377,1736781061732,-330.671775,0.00011081,2]
[348781378,1736781061745,-500.0,0.00011081,2]
[348781379,1736781061755,-500.0,0.00011081,2]
[348781380,1736781061764,-500.0,0.00011081,2]
[348781381,1736781061774,-500.0,0.00011081,2]
[348781382,1736781061783,-500.0,0.00011081,2]
[348781383,1736781061792,-500.0,0.00011081,2]
[348781384,1736781061805,-500.0,0.00011081,2]
[348781385,1736781061815,-833.42,0.00011081,2]
[348781386,1736781061825,-500.0,0.00011081,2]
[348781387,1736781061835,-500.0,0.00011081,2]
[348781388,1736781061845,-568.96,0.00011081,2]
[348781389,1736781061854,-540.79,0.00011081,2]
[348781390,1736781061864,-646.98,0.00011081,2]
[348781391,1736781061874,-494.16404616,0.00011081,2]
[348781392,1736781061884,-500.0,0.00011081,2]
[348781393,1736781061894,-500.0,0.00011081,2]
[348781394,1736781061903,-500.0,0.00011081,2]
[348781395,1736781061912,-500.0,0.00011081,2]
[348781396,1736781061922,-1246.49,0.00011081,2]
[348781397,1736781061931,-500.0,0.00011081,2]
[348781398,1736781061940,-500.0,0.00011081,2]
[348781399,1736781061950,-500.0,0.00011081,2]
[348781400,1736781061959,-500.0,0.00011081,2]
[348781401,1736781061968,-500.0,0.00011081,2]
[348781402,1736781061978,-500.0,0.00011081,2]
[348781403,1736781062139,-1200.84,0.00011081,2]
[348781404,1736781062150,-696.86,0.00011081,2]
[348781405,1736781062159,-500.0,0.00011081,2]
[348781406,1736781062169,-523.34,0.00011081,2]
[348781407,1736781062178,-500.0,0.00011081,2]
[348781408,1736781062187,-950.32,0.00011081,2]
[348781409,1736781062196,-732.18,0.00011081,2]
[348781410,1736781062207,-605.35818378,0.00011081,2]
[348781411,1736781062216,-500.0,0.00011081,2]
[348781412,1736781062225,-687.35,0.00011081,2]
[348781413,1736781062235,-500.0,0.00011081,2]
[348781414,1736781062244,-500.0,0.00011081,2]
[348781415,1736781062253,-673.27,0.00011081,2]
[348781416,1736781062263,-358.4939191,0.00011081,2]
[348781417,1736781062272,-261.76,0.00011081,2]
[348781418,1736781062282,-773.47,0.00011081,2]
[348781419,1736781062299,-2655.33,0.00011081,2]
[348781420,1736781062310,-774.98,0.00011081,2]
[348781421,1736781062320,-809.49,0.00011081,2]
[348781422,1736781062329,-500.0,0.00011081,2]
[348781423,1736781062338,-740.63,0.00011081,2]
[348781424,1736781062347,-928.3,0.00011081,2]
[348781425,1736781062357,-1536.22,0.00011081,2]
[348781426,1736781062367,-500.0,0.00011081,2]
[348781427,1736781062376,-500.0,0.00011081,2]
[348781428,1736781062385,-648.24,0.00011081,2]
[348781429,1736781062394,-532.08,0.00011081,2]
[348781430,1736781062404,-1882.34,0.00011081,2]
[348781431,1736781062415,-525.6,0.00011081,2]
[348781432,1736781062425,-773.45,0.00011081,2]
[348781433,1736781062437,-500.0,0.00011081,2]
[348781434,1736781062449,-500.0,0.00011081,2]
[348781435,1736781062458,-500.0,0.00011081,2]
[348781436,1736781062468,-500.0,0.00011081,2]
[348781437,1736781062478,-500.0,0.00011081,2]
[348781438,1736781062488,-500.0,0.00011081,2]
[348781439,1736781062500,-666.59,0.00011081,2]
[348781440,1736781062510,-3151.22,0.00011081,2]
[348781441,1736781062520,-724.24,0.00011081,2]
[348781442,1736781062530,-545.46,0.00011081,2]
[348781443,1736781062541,-500.0,0.00011081,2]
[348781444,1736781062558,-909.6,0.00011081,2]
[348781445,1736781062567,-500.0,0.00011081,2]
[348781446,1736781062577,-500.0,0.00011081,2]
[348781447,1736781062587,-440.30894383,0.00011081,2]
[348781448,1736781062596,-789.83,0.00011081,2]
[348781449,1736781062605,-500.0,0.00011081,2]
[348781450,1736781062614,-755.01,0.00011081,2]
[348781451,1736781062624,-821.97,0.00011081,2]
[348781452,1736781062634,-500.0,0.00011081,2]
[348781453,1736781062643,-500.0,0.00011081,2]
[348781454,1736781062653,-1680.2,0.00011081,2]
[348781455,1736781062663,-547.08,0.00011081,2]
[348781456,1736781062672,-500.0,0.00011081,2]
[348781457,1736781062681,-500.0,0.00011081,2]
[348781458,1736781062691,-163.82214848,0.00011081,2]
[348781459,1736781062700,-500.0,0.00011081,2]
[348781460,1736781062709,-734.92,0.00011081,2]
[348781461,1736781062718,-650.74,0.00011081,2]
[348781462,1736781062727,-500.0,0.00011081,2]
[348781463,1736781062737,-517.51,0.00011081,2]
[348781464,1736781062748,-3198.06,0.00011081,2]
[348781465,1736781062756,-500.0,0.00011081,2]
[348781466,1736781062765,-500.0,0.00011081,2]
[348781467,1736781062775,-931.27,0.00011081,2]
[348781468,1736781062785,-775.89,0.00011081,2]
[348781469,1736781062797,-500.0,0.00011081,2]
[348781470,1736781062807,-836.54,0.00011081,2]
[348781471,1736781062817,-500.0,0.00011081,2]
[348781472,1736781062826,-1686.96,0.00011081,2]
[348781473,1736781062835,-567.37,0.00011081,2]
[348781474,1736781062844,-500.0,0.00011081,2]
[348781475,1736781062853,-578.04,0.00011081,2]
[348781476,1736781062862,-500.0,0.00011081,2]
[348781477,1736781062872,-4315.13,0.00011081,2]
[348781478,1736781062880,-1882.24,0.00011081,2]
[348781479,1736781062889,-500.0,0.00011081,2]
[348781480,1736781062899,-808.8,0.00011081,2]
[348781481,1736781062908,-150.43,0.00011081,2]
[348781482,1736781062918,-6573.2,0.00011081,2]
[348781483,1736781062928,-152.650578,0.00011081,2]
[348781484,1736781062939,-563.79,0.00011081,2]
[348781485,1736781062949,-908.18,0.00011081,2]
[348781486,1736781062959,-500.0,0.00011081,2]
[348781487,1736781062970,-3092.56,0.00011081,2]
[348781488,1736781062980,-500.0,0.00011081,2]
[348781489,1736781062991,-460.44,0.00011081,2]
[348781490,1736781063000,-816.12,0.00011081,2]
[348781491,1736781063010,-500.0,0.00011081,2]
[348781492,1736781063019,-665.42,0.00011081,2]
[348781493,1736781063028,-500.0,0.00011081,2]
[348781494,1736781063038,-500.0,0.00011081,2]
[348781495,1736781063052,-1177.52,0.00011081,2]
[348781496,1736781063063,-156.28572,0.00011081,2]
[348781497,1736781063072,-3267.6,0.00011081,2]
[348781498,1736781063082,-500.0,0.00011081,2]
[348781499,1736781063092,-736.89,0.00011081,2]
[348781500,1736781063103,-500.0,0.00011081,2]
[348781501,1736781063113,-1040.63,0.00011081,2]
[348781502,1736781063124,-500.0,0.00011081,2]
[348781503,1736781063134,-158.12774,0.00011081,2]
[348781504,1736781063144,-2974.13,0.00011081,2]
[348781505,1736781063153,-857.7,0.00011081,2]
[348781506,1736781063162,-253.76668735,0.00011081,2]
[348781507,1736781063171,-778.55,0.00011081,2]
[348781508,1736781063181,-500.0,0.00011081,2]
[348781509,1736781063191,-500.0,0.00011081,2]
[348781510,1736781063201,-160.742573,0.00011081,2]
[348781511,1736781063212,-500.0,0.00011081,2]
[348781512,1736781063222,-500.0,0.00011081,2]
[348781513,1736781063232,-500.0,0.00011081,2]
[348781514,1736781063243,-152.289649,0.00011081,2]
[348781515,1736781063254,-500.0,0.00011081,2]
[348781516,1736781063265,-1393.48,0.00011081,2]
[348781517,1736781063276,-500.0,0.00011081,2]
[348781518,1736781063287,-500.0,0.00011081,2]
[348781519,1736781063303,-4043.18,0.00011081,2]
[348781520,1736781063314,-500.0,0.00011081,2]
[348781521,1736781063324,-500.0,0.00011081,2]
[348781522,1736781063334,-641.1,0.00011081,2]
[348781523,1736781063345,-159.65541,0.00011081,2]
[348781524,1736781063355,-500.0,0.00011081,2]
[348781525,1736781063366,-155.000621,0.00011081,2]
[348781526,1736781063377,-1063.02,0.00011081,2]
[348781527,1736781063388,-500.0,0.00011081,2]
[348781528,1736781063399,-500.0,0.00011081,2]
[348781529,1736781063409,-500.0,0.00011081,2]
[348781530,1736781063419,-317.57966019,0.00011081,2]
[348781531,1736781063430,-500.0,0.00011081,2]
[348781532,1736781063441,-159.466887,0.00011081,2]
[348781533,1736781063451,-778.3,0.00011081,2]
[348781534,1736781063462,-1307.83,0.00011081,2]
[348781535,1736781063473,-500.0,0.00011081,2]
[348781536,1736781063483,-584.38,0.00011081,2]
[348781537,1736781063493,-155.696244,0.00011081,2]
[348781538,1736781063504,-500.0,0.00011081,2]
[348781539,1736781063514,-500.0,0.00011081,2]
[348781540,1736781063525,-1826.28,0.00011081,2]
[348781541,1736781063536,-500.0,0.00011081,2]
[348781542,1736781063553,-466.56119353,0.00011081,2]
[348781543,1736781063563,-1347.85,0.00011081,2]
[348781544,1736781063574,-1214.14,0.00011081,2]
[348781545,1736781063585,-155.907956,0.00011081,2]
[348781546,1736781063596,-500.0,0.00011081,2]
[348781547,1736781063608,-500.0,0.00011081,2]
[348781548,1736781063619,-500.0,0.00011081,2]
[348781549,1736781063630,-165.573314,0.00011081,2]
[348781550,1736781063642,-530.92500671,0.00011081,2]
[348781551,1736781063652,-500.0,0.00011081,2]
[348781552,1736781063662,-551.71,0.00011081,2]
[348781553,1736781063672,-723.25,0.00011081,2]
[348781554,1736781063683,-500.0,0.00011081,2]
[348781555,1736781063692,-500.0,0.00011081,2]
[348781556,1736781063702,-160.360957,0.00011081,2]
[348781557,1736781063712,-500.0,0.00011081,2]
[348781558,1736781063722,-157.165237,0.00011081,2]
[348781559,1736781063732,-500.0,0.00011081,2]
[348781560,1736781063742,-500.0,0.00011081,2]
[348781561,1736781063751,-1523.09,0.00011081,2]
[348781562,1736781063761,-1616.15,0.00011081,2]
[348781563,1736781063771,-157.956216,0.00011081,2]
[348781564,1736781063782,-155.545881,0.00011081,2]
[348781565,1736781063792,-500.0,0.00011081,2]
[348781566,1736781063809,-500.0,0.00011081,2]
[348781567,1736781063819,-500.0,0.00011082,2]
[348781568,1736781063829,-500.0,0.00011082,2]
[348781569,1736781063840,-500.0,0.00011082,2]
[348781570,1736781063851,-500.0,0.00011082,7]
[348781571,1736781063861,-395.49019466,0.00011082,2]
[348781572,1736781063871,-500.0,0.00011082,2]
[348781573,1736781063880,-500.0,0.00011082,2]
[348781574,1736781063890,-500.0,0.00011082,2]
[348781575,1736781063899,-225.5868487,0.00011082,2]
[348781576,1736781063909,-500.0,0.00011082,2]
[348781577,1736781063919,-500.0,0.00011082,2]
[348781578,1736781063928,-500.0,0.00011082,2]
[348781579,1736781063938,-458.58,0.00011082,2]
[348781580,1736781063947,-500.0,0.00011082,2]
[348781581,1736781063956,-272.95,0.00011082,2]
[348781582,1736781063966,-500.0,0.00011082,2]
[348781583,1736781063976,-500.0,0.00011082,2]
[348781584,1736781063985,-500.0,0.00011082,2]
[348781585,1736781063995,-1740.25,0.00011082,2]
[348781586,1736781064005,-1204.96,0.00011082,2]
[348781587,1736781064015,-1337.41,0.00011082,2]
[348781588,1736781064025,-3320.96,0.00011082,2]
[348781589,1736781064034,-935.33,0.00011082,2]
[348781590,1736781064048,-1115.16,0.00011082,2]
[348781591,1736781064058,-541.42,0.00011083,2]
[348781592,1736781064069,-567.18,0.00011083,2]
[348781593,1736781064079,-1780.09,0.00011083,2]
[348781594,1736781064089,-162.96,0.00011083,2]
[348781595,1736781064099,-500.0,0.00011083,2]
[348781596,1736781064109,-1041.22,0.00011083,2]
[348781597,1736781064122,-1973.52,0.00011089,2]
[348781598,1736781064133,-6491.93,0.00011089,2]
[348781599,1736781064143,-930.54,0.00011089,2]
[348781600,1736781064155,-1365.81,0.00011094,2]
[348781601,1736781064165,-956.03,0.00011094,2]
[348781602,1736781064176,-902.73,0.00011094,2]
[348781603,1736781064187,-745.28,0.00011094,2]
[348781604,1736781064198,-500.0,0.00011094,2]
[348781605,1736781064208,-900.09,0.00011094,2]
[348781606,1736781064218,-1047.7,0.00011094,2]
[348781607,1736781064229,-694.11,0.00011094,2]
[348781608,1736781064239,-1261.35,0.00011094,2]
[348781609,1736781064250,-1046.61,0.00011094,2]
[348781610,1736781064260,-213.96529047,0.00011099,2]
[348781611,1736781064271,-213.96529045,0.00011099,2]
[348781612,1736781064282,-213.96529045,0.00011099,2]
[348781613,1736781064294,-213.96529045,0.00011099,2]
[348781614,1736781064310,-213.96529045,0.00011099,2]
[348781615,1736781064321,-661.39650925,0.00011099,2]
[348781616,1736781065240,5050.0,0.00021,32]
[348781617,1736781065281,-2477.2161762,9.885e-05,2]
[348781618,1736781065292,-1010.9206,9.885e-05,2]
[348781619,1736781065308,-468.3,9.885e-05,2]
[348781620,1736781065322,-1043.5632238,9.885e-05,2]
[348781621,1736781065332,-500.0,9.984e-05,2]
[348781622,1736781065343,-500.0,9.984e-05,2]
[348781623,1736781065353,-500.0,9.985e-05,2]
[348781624,1736781065362,-500.0,9.986e-05,2]
[348781625,1736781065372,-500.0,0.00010258,2]
[348781626,1736781065383,-500.0,0.00010258,2]
[348781627,1736781065393,-500.0,0.00010259,2]
[348781628,1736781065403,-500.0,0.00010259,2]
[348781629,1736781065412,-838.19,0.0001026,2]
[348781630,1736781065422,-500.0,0.0001026,2]
[348781631,1736781065432,-500.0,0.00010532,2]
[348781632,1736781065443,-500.0,0.00010532,2]
[348781633,1736781065452,-500.0,0.00010533,2]
[348781634,1736781065461,-838.19,0.00010534,2]
[348781635,1736781065472,-500.0,0.00010806,2]
[348781636,1736781065482,-500.0,0.00010807,2]
[348781637,1736781065492,-838.19,0.00010808,2]
[348781638,1736781065501,-500.0,0.00010815,2]
[348781639,1736781065511,-500.0,0.00010999,2]
[348781640,1736781065521,-500.0,0.0001108,2]
[348781641,1736781065531,-838.19,0.00011082,2]
[348781642,1736781065541,-1444.63912019,0.00011099,2]
[348781643,1736781065557,-2106.03562939,0.00011099,2]
[348781644,1736781065567,-2106.03562939,0.00011099,2]
[348781645,1736781065577,-2106.03562939,0.00011099,2]
[348781646,1736781065587,-2106.03562939,0.00011099,2]
[348781647,1736781065597,-400.84309115,0.00011141,2]
[348781648,1736781065606,-213.96529045,0.00011171,2]
[348781649,1736781065616,-2106.03562939,0.00011171,2]
[348781650,1736781065625,-1000.0,0.00011233,2]
[348781651,1736781065635,-400.84309115,0.00011245,2]
[348781652,1736781065646,-400.84309115,0.00011348,2]
[348781653,1736781065656,-500.0,0.00011354,2]
[348781654,1736781065666,-2113.26,0.00011354,2]
[348781655,1736781065676,-1620.44,0.00011354,2]
[348781656,1736781065686,-1145.76,0.00011354,2]
[348781657,1736781065695,-1082.52774598,0.00011354,2]
[348781658,1736781065708,-1190.80225402,0.00011354,2]
[348781659,1736781065719,-714.16,0.00011354,2]
[348781660,1736781065728,-500.0,0.00011354,2]
[348781661,1736781065738,-1574.97,0.00011354,2]
[348781662,1736781065748,-812.01,0.00011354,2]
[348781663,1736781065758,-500.0,0.00011354,2]
[348781664,1736781065768,-480.94908593,0.00011354,2]
[348781665,1736781065779,-19.05091407,0.00011354,2]
[348781666,1736781065789,-589.9,0.00011355,2]
[348781667,1736781065803,-500.0,0.00011355,2]
[348781668,1736781065812,-500.0,0.00011355,2]
[348781669,1736781065821,-597.62,0.00011355,2]
[348781670,1736781065831,-1284.02,0.00011355,2]
[348781671,1736781065840,-1609.2,0.00011355,2]
[348781672,1736781065850,-988.31,0.00011355,2]
[348781673,1736781065859,-730.11,0.00011355,2]
[348781674,1736781065869,-2036.03,0.00011355,2]
[348781675,1736781065878,-500.0,0.00011355,2]
[348781676,1736781065887,-500.0,0.00011355,2]
[348781677,1736781065897,-500.0,0.00011355,2]
[348781678,1736781065906,-159.60960532,0.00011355,2]
[348781679,1736781065918,-2114.25039468,0.00011355,2]
[348781680,1736781065928,-805.23,0.00011355,2]
[348781681,1736781065938,-553.16,0.00011355,2]
[348781682,1736781065948,-500.0,0.00011355,2]
[348781683,1736781065958,-500.0,0.00011355,2]
[348781684,1736781065968,-500.0,0.00011355,2]
[348781685,1736781065977,-494.74,0.00011355,2]
[348781686,1736781065987,-500.0,0.00011355,2]
[348781687,1736781065997,-500.0,0.00011355,2]
[348781688,1736781066008,-833.42,0.00011355,2]
[348781689,1736781066019,-276.9325319,0.00011355,2]
[348781690,1736781066028,-435.3029577,0.00011355,2]
[348781691,1736781066040,-133.6570423,0.00011355,2]
[348781692,1736781066052,-251.70719819,0.00011355,2]
[348781693,1736781066064,-395.27280181,0.00011355,2]
[348781694,1736781066074,-470.41719819,0.00011355,2]
[348781695,1736781066086,-29.58280181,0.00011355,2]
[348781696,1736781066096,-500.0,0.00011355,2]
[348781697,1736781066107,-500.0,0.00011355,2]
[348781698,1736781066118,-431.01587777,0.00011355,2]
[348781699,1736781066136,-68.98412223,0.00011355,2]
[348781700,1736781066146,-1246.49,0.00011355,2]
[348781701,1736781066156,-500.0,0.00011355,2]
[348781702,1736781066166,-500.0,0.00011355,2]
[348781703,1736781066176,-222.11541652,0.00011355,2]
[348781704,1736781066187,-500.0,0.00011355,2]
[348781705,1736781066196,-500.0,0.00011355,2]
[348781706,1736781066207,-1200.84,0.00011355,2]
[348781707,1736781066217,-696.86,0.00011355,2]
[348781708,1736781066226,-500.0,0.00011355,2]
[348781709,1736781066236,-523.34,0.00011355,2]
[348781710,1736781066245,-500.0,0.00011355,2]
[348781711,1736781066255,-732.18,0.00011355,2]
[348781712,1736781066266,-950.32,0.00011355,2]
[348781713,1736781066276,-511.33,0.00011355,2]
[348781714,1736781066286,-687.35,0.00011355,2]
[348781715,1736781066299,-500.0,0.00011355,2]
[348781716,1736781066308,-225.26439751,0.00011355,2]
[348781717,1736781066319,-327.32515203,0.00011355,2]
[348781718,1736781066331,-345.94484797,0.00011355,2]
[348781719,1736781066341,-773.47,0.00011355,2]
[348781720,1736781066351,-2655.33,0.00011355,2]
[348781721,1736781066361,-774.98,0.00011355,2]
[348781722,1736781066371,-809.49,0.00011355,2]
[348781723,1736781066381,-740.63,0.00011355,2]
[348781724,1736781066390,-928.3,0.00011355,2]
[348781725,1736781066399,-1536.22,0.00011355,2]
[348781726,1736781066410,-500.0,0.00011355,2]
[348781727,1736781066420,-500.0,0.00011355,2]
[348781728,1736781066431,-532.08,0.00011355,2]
[348781729,1736781066443,-1882.34,0.00011355,2]
[348781730,1736781066453,-773.45,0.00011355,2]
[348781731,1736781066463,-500.0,0.00011355,2]
[348781732,1736781066473,-500.0,0.00011355,2]
[348781733,1736781066483,-416.89897565,0.00011355,2]
[348781734,1736781066493,-500.0,0.00011355,2]
[348781735,1736781066504,-500.0,0.00011355,2]
[348781736,1736781066513,-666.59,0.00011355,2]